fUSD/lending_fUSD_20250823
["ID","MTS","AMOUNT","RATE_DAILY","PERIOD"]
[380949766,1755912668116,-400.0,0.00013972,2]
[380949767,1755912668125,-538.24,0.00013972,2]
[380949768,1755912668135,-531.82,0.00013972,2]
[380949769,1755912668145,-400.0,0.00013972,2]
[380949770,1755912668155,-599.57,0.00013972,2]
[380949771,1755912668165,-400.0,0.00013972,2]
[380949772,1755912668175,-400.0,0.00013972,2]
[380949773,1755912668185,-578.64,0.00013972,2]
[380949774,1755912668195,-481.87,0.00013972,2]
[380949775,1755912668205,-876.45,0.00013972,2]
[380949776,1755912668215,-400.0,0.00013972,2]
[380949777,1755912668225,-400.0,0.00013972,2]
[380949778,1755912668235,-596.46,0.00013972,2]
[380949779,1755912668244,-400.0,0.00013972,2]
[380949780,1755912668254,-750.69,0.00013972,2]
[380949781,1755912668264,-400.0,0.00013972,2]
[380949782,1755912668274,-400.0,0.00013972,2]
[380949783,1755912668285,-483.91,0.00013972,2]
[380949784,1755912668295,-151.0,0.00013972,2]
[380949785,1755912668306,-151.0,0.00013972,2]
[380949786,1755912668317,-400.0,0.00013972,2]
[380949787,1755912668328,-2560.03,0.00013972,2]
[380949788,1755912668338,-429.94,0.00013972,2]
[380949789,1755912668348,-400.0,0.00013972,2]
[380949790,1755912668358,-400.0,0.00013972,2]
[380949791,1755912668372,-400.0,0.00013972,2]
[380949792,1755912668382,-511.98,0.00013972,2]
[380949793,1755912668392,-583.44,0.00013972,2]
[380949794,1755912668404,-400.0,0.00013972,2]
[380949795,1755912668415,-400.0,0.00013972,2]
[380949796,1755912668424,-412.65,0.00013972,2]
[380949797,1755912668434,-151.0,0.00013972,2]
[380949798,1755912668445,-400.0,0.00013972,2]
[380949799,1755912668454,-400.0,0.00013972,2]
[380949800,1755912668464,-789.4,0.00013972,2]
[380949801,1755912668474,-714.55,0.00013972,2]
[380949802,1755912668484,-466.47,0.00013972,2]
[380949803,1755912668494,-400.0,0.00013972,2]
[380949804,1755912668504,-400.0,0.00013972,2]
[380949805,1755912668514,-151.0,0.00013972,2]
[380949806,1755912668525,-151.0,0.00013972,2]
[380949807,1755912668535,-151.0,0.00013972,2]
[380949808,1755912668545,-483.0,0.00013972,2]
[380949809,1755912668555,-638.96,0.00013972,2]
[380949810,1755912668565,-156.247786,0.00013972,2]
[380949811,1755912668575,-411.07,0.00013972,2]
[380949812,1755912668584,-626.45,0.00013972,2]
[380949813,1755912668594,-151.0,0.00013972,2]
[380949814,1755912668604,-400.0,0.00013972,2]
[380949815,1755912668614,-151.0,0.00013972,2]
[380949816,1755912668624,-151.0,0.00013972,2]
[380949817,1755912668634,-459.86,0.00013972,2]
[380949818,1755912668644,-590.56,0.00013972,2]
[380949819,1755912668654,-151.0,0.00013972,2]
[380949820,1755912668664,-400.0,0.00013972,2]
[380949821,1755912668674,-151.0,0.00013972,2]
[380949822,1755912668684,-7170.55,0.00013972,2]
[380949823,1755912668694,-151.0,0.00013972,2]
[380949824,1755912668704,-400.0,0.00013972,2]
[380949825,1755912668714,-400.0,0.00013972,2]
[380949826,1755912668724,-151.0,0.00013972,2]
[380949827,1755912668734,-489.74,0.00013972,2]
[380949828,1755912668744,-400.0,0.00013972,2]
[380949829,1755912668755,-192.358073,0.00013972,2]
[380949830,1755912668765,-798.6,0.00013972,2]
[380949831,1755912668775,-151.0,0.00013972,2]
[380949832,1755912668786,-414.4,0.00013972,2]
[380949833,1755912668796,-755.36,0.00013972,2]
[380949834,1755912668807,-400.0,0.00013972,2]
[380949835,1755912668819,-400.0,0.00013972,2]
[380949836,1755912668829,-192.358073,0.00013972,2]
[380949837,1755912668840,-151.0,0.00013972,2]
[380949838,1755912668851,-400.0,0.00013972,2]
[380949839,1755912668862,-2114.53,0.00013972,2]
[380949840,1755912668872,-192.358073,0.00013972,2]
[380949841,1755912668883,-556.35,0.00013972,2]
[380949842,1755912668893,-400.0,0.00013972,2]
[380949843,1755912668905,-522.88,0.00013972,2]
[380949844,1755912668917,-192.358073,0.00013972,2]
[380949845,1755912668927,-400.0,0.00013972,2]
[380949846,1755912668937,-151.0,0.00013972,2]
[380949847,1755912668948,-400.0,0.00013972,2]
[380949848,1755912668959,-400.0,0.00013972,2]
[380949849,1755912668969,-446.5,0.00013972,2]
[380949850,1755912668980,-2594.59,0.00013972,2]
[380949851,1755912668990,-178.034059,0.00013972,2]
[380949852,1755912669000,-400.0,0.00013972,2]
[380949853,1755912669010,-151.0,0.00013972,2]
[380949854,1755912669021,-151.0,0.00013972,2]
[380949855,1755912669031,-400.0,0.00013972,2]
[380949856,1755912669042,-151.0,0.00013972,2]
[380949857,1755912669052,-400.0,0.00013972,2]
[380949858,1755912669062,-400.0,0.00013972,2]
[380949859,1755912669073,-400.0,0.00013972,2]
[380949860,1755912669083,-178.034059,0.00013972,2]
[380949861,1755912669093,-529.92,0.00013972,2]
[380949862,1755912669103,-178.034059,0.00013972,2]
[380949863,1755912669114,-705.67,0.00013972,2]
[380949864,1755912669124,-896.87,0.00013972,2]
[380949865,1755912669134,-178.034059,0.00013972,2]
[380949866,1755912669145,-1094.77,0.00013972,2]
[380949867,1755912669155,-400.0,0.00013972,2]
[380949868,1755912669167,-741.74,0.00013972,2]
[380949869,1755912669176,-400.0,0.00013972,2]
[380949870,1755912669186,-151.172869,0.00013972,2]
[380949871,1755912669197,-869.76,0.00013972,2]
[380949872,1755912669207,-418.69,0.00013972,2]
[380949873,1755912669217,-400.0,0.00013972,2]
[380949874,1755912669227,-400.0,0.00013972,2]
[380949875,1755912669236,-400.0,0.00013972,2]
[380949876,1755912669246,-400.0,0.00013972,2]
[380949877,1755912669256,-562.13,0.00013972,2]
[380949878,1755912669266,-437.77,0.00013972,2]
[380949879,1755912669276,-1048.91,0.00013972,2]
[380949880,1755912669285,-541.27,0.00013972,2]
[380949881,1755912669295,-723.99,0.00013972,2]
[380949882,1755912669305,-400.0,0.00013972,2]
[380949883,1755912669315,-400.0,0.00013972,2]
[380949884,1755912669325,-530.85,0.00013972,2]
[380949885,1755912669335,-4903.23,0.00013972,2]
[380949886,1755912669345,-614.11,0.00013972,2]
[380949887,1755912669356,-963.36,0.00013972,2]
[380949888,1755912669370,-400.0,0.00013972,2]
[380949889,1755912669380,-685.08,0.00013972,2]
[380949890,1755912669390,-508.77,0.00013972,2]
[380949891,1755912669400,-400.0,0.00013972,2]
[380949892,1755912669410,-956.53,0.00013972,2]
[380949893,1755912669420,-151.0,0.00013972,2]
[380949894,1755912669430,-400.0,0.00013972,2]
[380949895,1755912669440,-400.0,0.00013972,2]
[380949896,1755912669450,-690.94,0.00013972,2]
[380949897,1755912669461,-151.0,0.00013972,2]
[380949898,1755912669471,-400.0,0.00013972,2]
[380949899,1755912669481,-781.78,0.00013972,2]
[380949900,1755912669491,-151.0,0.00013972,2]
[380949901,1755912669501,-516.0,0.00013972,2]
[380949902,1755912669511,-400.0,0.00013972,2]
[380949903,1755912669521,-151.0,0.00013972,2]
[380949904,1755912669531,-151.0,0.00013972,2]
[380949905,1755912669541,-407.82,0.00013972,2]
[380949906,1755912669551,-400.0,0.00013972,2]
[380949907,1755912669560,-151.0,0.00013972,2]
[380949908,1755912669570,-2566.25,0.00013972,2]
[380949909,1755912669580,-400.0,0.00013972,2]
[380949910,1755912669590,-573.49,0.00013972,2]
[380949911,1755912669600,-400.0,0.00013972,2]
[380949912,1755912669610,-400.0,0.00013972,2]
[380949913,1755912669620,-400.0,0.00013972,2]
[380949914,1755912669630,-548.91,0.00013972,2]
[380949915,1755912669640,-400.0,0.00013972,2]
[380949916,1755912669650,-1155.0,0.00013972,2]
[380949917,1755912669659,-468.96,0.00013972,2]
[380949918,1755912669671,-947.84,0.00013972,2]
[380949919,1755912669681,-151.0,0.00013972,2]
[380949920,1755912669691,-659.68,0.00013972,2]
[380949921,1755912669701,-400.0,0.00013972,2]
[380949922,1755912669711,-1053.52,0.00013972,2]
[380949923,1755912669721,-151.0,0.00013972,2]
[380949924,1755912669731,-151.0,0.00013972,2]
[380949925,1755912669741,-691.7,0.00013972,2]
[380949926,1755912669751,-151.0,0.00013972,2]
[380949927,1755912669760,-719.87,0.00013972,2]
[380949928,1755912669771,-520.82527194,0.00013972,2]
[380949929,1755912669780,-557.81,0.00013972,2]
[380949930,1755912669790,-272.697624,0.00013972,2]
[380949931,1755912669800,-400.0,0.00013972,2]
[380949932,1755912669811,-621.05,0.00013972,2]
[380949933,1755912669820,-1327.17,0.00013972,2]
[380949934,1755912669830,-151.0,0.00013972,2]
[380949935,1755912669840,-400.0,0.00013972,2]
[380949936,1755912669850,-400.0,0.00013972,2]
[380949937,1755912669861,-151.0,0.00013972,2]
[380949938,1755912669871,-811.77,0.00013972,2]
[380949939,1755912669882,-532.88,0.00013972,2]
[380949940,1755912669893,-400.0,0.00013972,2]
[380949941,1755912669903,-448.05,0.00013972,2]
[380949942,1755912669915,-482.24,0.00013972,2]
[380949943,1755912669925,-513.6288663,0.00013972,2]
[380949944,1755912669935,-786.36,0.00013972,2]
[380949945,1755912669945,-825.64,0.00013972,2]
[380949946,1755912669955,-508.4,0.00013972,2]
[380949947,1755912669965,-400.0,0.00013972,2]
[380949948,1755912669976,-400.0,0.00013972,2]
[380949949,1755912669986,-151.0,0.00013972,2]
[380949950,1755912669997,-400.0,0.00013972,2]
[380949951,1755912670008,-1160.25,0.00013972,2]
[380949952,1755912670017,-400.0,0.00013972,2]
[380949953,1755912670028,-400.0,0.00013972,2]
[380949954,1755912670038,-471.12,0.00013972,2]
[380949955,1755912670049,-478.08,0.00013972,2]
[380949956,1755912670059,-522.09,0.00013972,2]
[380949957,1755912670069,-400.0,0.00013972,2]
[380949958,1755912670079,-400.0,0.00013972,2]
[380949959,1755912670090,-400.0,0.00013972,2]
[380949960,1755912670100,-876.0,0.00013972,2]
[380949961,1755912670111,-151.0,0.00013972,2]
[380949962,1755912670122,-1658.24,0.00013972,2]
[380949963,1755912670133,-400.0,0.00013972,2]
[380949964,1755912670438,-413.45,0.00013972,2]
[380949965,1755912670450,-400.01,0.00013972,2]
[380949966,1755912670460,-928.99,0.00013972,2]
[380949967,1755912670469,-535.34,0.00013972,2]
[380949968,1755912670480,-1082.57,0.00013972,2]
[380949969,1755912670489,-400.0,0.00013972,2]
[380949970,1755912670498,-599.68,0.00013972,2]
[380949971,1755912670506,-581.91,0.00013972,2]
[380949972,1755912670514,-576.13,0.00013972,2]
[380949973,1755912670523,-400.0,0.00013972,2]
[380949974,1755912670531,-808.82,0.00013972,2]
[380949975,1755912670539,-677.9,0.00013972,2]
[380949976,1755912670548,-704.93,0.00013972,2]
[380949977,1755912670556,-1628.12,0.00013972,2]
[380949978,1755912670566,-629.77,0.00013972,2]
[380949979,1755912670576,-400.0,0.00013972,2]
[380949980,1755912670586,-458.74,0.00013972,2]
[380949981,1755912670596,-909.17,0.00013972,2]
[380949982,1755912670606,-757.81,0.00013972,2]
[380949983,1755912670615,-400.0,0.00013972,2]
[380949984,1755912670625,-412.49,0.00013972,2]
[380949985,1755912670635,-400.0,0.00013972,2]
[380949986,1755912670644,-562.56,0.00013972,2]
[380949987,1755912670654,-400.0,0.00013972,2]
[380949988,1755912670665,-400.0,0.00013972,2]
[380949989,1755912670674,-901.46,0.00013972,2]
[380949990,1755912670684,-556.37,0.00013972,2]
[380949991,1755912670693,-699.23,0.00013972,2]
[380949992,1755912670703,-554.4,0.00013972,2]
[380949993,1755912670713,-627.55,0.00013972,2]
[380949994,1755912670723,-442.39,0.00013972,2]
[380949995,1755912670732,-400.0,0.00013972,2]
[380949996,1755912670742,-475.41,0.00013972,2]
[380949997,1755912670752,-493.66,0.00013972,2]
[380949998,1755912670761,-151.0,0.00013972,2]
[380949999,1755912670771,-151.0,0.00013972,2]
[380950000,1755912670780,-151.0,0.00013972,2]
[380950001,1755912670790,-400.0,0.00013972,2]
[380950002,1755912670800,-400.0,0.00013972,2]
[380950003,1755912670810,-618.33,0.00013972,2]
[380950004,1755912670819,-220.187109,0.00013972,2]
[380950005,1755912670829,-400.0,0.00013972,2]
[380950006,1755912670838,-400.0,0.00013972,2]
[380950007,1755912670848,-220.187109,0.00013972,2]
[380950008,1755912670857,-1043.76,0.00013972,2]
[380950009,1755912670867,-151.0,0.00013972,2]
[380950010,1755912670877,-220.187109,0.00013972,2]
[380950011,1755912670887,-400.0,0.00013972,2]
[380950012,1755912670896,-400.0,0.00013972,2]
[380950013,1755912670906,-220.187109,0.00013972,2]
[380950014,1755912670916,-400.0,0.00013972,2]
[380950015,1755912670926,-427.73,0.00013972,2]
[380950016,1755912670936,-501.87,0.00013972,2]
[380950017,1755912670945,-415.82,0.00013972,2]
[380950018,1755912670956,-491.94,0.00013972,2]
[380950019,1755912670965,-537.21,0.00013972,2]
[380950020,1755912670975,-682.29,0.00013972,2]
[380950021,1755912670984,-400.0,0.00013972,2]
[380950022,1755912670993,-468.97,0.00013972,2]
[380950023,1755912671003,-400.0,0.00013972,2]
[380950024,1755912671013,-500.0,0.00013972,2]
[380950025,1755912671022,-577.38,0.00013972,2]
[380950026,1755912671032,-400.0,0.00013972,2]
[380950027,1755912671041,-640.17,0.00013972,2]
[380950028,1755912671051,-568.93,0.00013972,2]
[380950029,1755912671060,-400.0,0.00013972,2]
[380950030,1755912671070,-400.0,0.00013972,2]
[380950031,1755912671079,-1263.394896,0.00013972,2]
[380950032,1755912671089,-620.18,0.00013972,2]
[380950033,1755912671099,-1263.394896,0.00013972,2]
[380950034,1755912671108,-151.0,0.00013972,2]
[380950035,1755912671118,-1005.26,0.00013972,2]
[380950036,1755912671127,-1263.394896,0.00013972,2]
[380950037,1755912671137,-933.58,0.00013972,2]
[380950038,1755912671147,-151.0,0.00013972,2]
[380950039,1755912671156,-457.02,0.00013972,2]
[380950040,1755912671168,-400.0,0.00013972,2]
[380950041,1755912671178,-773.99,0.00013972,2]
[380950042,1755912671188,-400.0,0.00013972,2]
[380950043,1755912671198,-1263.394896,0.00013972,2]
[380950044,1755912671208,-400.0,0.00013972,2]
[380950045,1755912671218,-400.0,0.00013972,2]
[380950046,1755912671227,-151.0,0.00013972,2]
[380950047,1755912671237,-269.124975,0.00013972,2]
[380950048,1755912671247,-151.0,0.00013972,2]
[380950049,1755912671256,-400.0,0.00013972,2]
[380950050,1755912671266,-400.0,0.00013972,2]
[380950051,1755912671276,-269.124975,0.00013972,2]
[380950052,1755912671285,-303.152926,0.00013972,2]
[380950053,1755912671294,-610.39,0.00013972,2]
[380950054,1755912671304,-400.0,0.00013972,2]
[380950055,1755912671313,-400.0,0.00013972,2]
[380950056,1755912671323,-269.124975,0.00013972,2]
[380950057,1755912671333,-303.152926,0.00013972,2]
[380950058,1755912671342,-605.05,0.00013972,2]
[380950059,1755912671351,-407.11,0.00013972,2]
[380950060,1755912671363,-400.0,0.00013972,2]
[380950061,1755912671373,-453.525844,0.00013972,2]
[380950062,1755912671382,-303.152926,0.00013972,2]
[380950063,1755912671392,-646.19,0.00013972,2]
[380950064,1755912671402,-269.124975,0.00013972,2]
[380950065,1755912671411,-400.0,0.00013972,2]
[380950066,1755912671421,-400.0,0.00013972,2]
[380950067,1755912671430,-303.152926,0.00013972,2]
[380950068,1755912671439,-453.525844,0.00013972,2]
[380950069,1755912671449,-431.04,0.00013972,2]
[380950070,1755912671459,-938.83,0.00013972,2]
[380950071,1755912671468,-400.0,0.00013972,2]
[380950072,1755912671477,-400.0,0.00013972,2]
[380950073,1755912671487,-490.42,0.00013972,2]
[380950074,1755912671496,-580.088906,0.00013972,2]
[380950075,1755912671505,-400.0,0.00013972,2]
[380950076,1755912671514,-453.525844,0.00013972,2]
[380950077,1755912671523,-151.0,0.00013972,2]
[380950078,1755912671532,-664.71,0.00013972,2]
[380950079,1755912671542,-151.0,0.00013972,2]
[380950080,1755912671551,-580.088906,0.00013972,2]
[380950081,1755912671561,-453.525844,0.00013972,2]
[380950082,1755912671570,-1070.54,0.00013972,2]
[380950083,1755912671579,-546.05,0.00013972,2]
[380950084,1755912671589,-151.0,0.00013972,2]
[380950085,1755912671598,-665.32,0.00013972,2]
[380950086,1755912671608,-410.97,0.00013972,2]
[380950087,1755912671617,-570.73,0.00013972,2]
[380950088,1755912671626,-580.088906,0.00013972,2]
[380950089,1755912671635,-196.827048,0.00013972,2]
[380950090,1755912671645,-151.0,0.00013972,2]
[380950091,1755912671654,-580.088906,0.00013972,2]
[380950092,1755912671663,-196.827048,0.00013972,2]
[380950093,1755912671672,-151.0,0.00013972,2]
[380950094,1755912671682,-716.24,0.00013972,2]
[380950095,1755912671691,-400.0,0.00013972,2]
[380950096,1755912671701,-196.827048,0.00013972,2]
[380950097,1755912671711,-400.0,0.00013972,2]
[380950098,1755912671721,-697.95,0.00013972,2]
[380950099,1755912671730,-731.6,0.00013972,2]
[380950100,1755912671740,-400.0,0.00013972,2]
[380950101,1755912671749,-196.827048,0.00013972,2]
[380950102,1755912671759,-509.97,0.00013972,2]
[380950103,1755912671768,-1401.51,0.00013972,2]
[380950104,1755912671778,-400.0,0.00013972,2]
[380950105,1755912671788,-474.27,0.00013972,2]
[380950106,1755912671798,-1143.48,0.00013972,2]
[380950107,1755912671807,-151.0,0.00013972,2]
[380950108,1755912671817,-400.0,0.00013972,2]
[380950109,1755912671826,-633.21,0.00013972,2]
[380950110,1755912671835,-151.0,0.00013972,2]
[380950111,1755912671845,-551.73,0.00013972,2]
[380950112,1755912671854,-1150.35,0.00013972,2]
[380950113,1755912671863,-400.0,0.00013972,2]
[380950114,1755912671873,-803.81,0.00013972,2]
[380950115,1755912671882,-709.31,0.00013972,2]
[380950116,1755912671892,-151.0,0.00013972,2]
[380950117,1755912671901,-400.0,0.00013972,2]
[380950118,1755912671910,-400.0,0.00013972,2]
[380950119,1755912671921,-518.56,0.00013972,2]
[380950120,1755912671931,-400.0,0.00013972,2]
[380950121,1755912671941,-743.59,0.00013972,2]
[380950122,1755912671952,-507.56,0.00013972,2]
[380950123,1755912671961,-400.0,0.00013972,2]
[380950124,1755912671971,-599.05,0.00013972,2]
[380950125,1755912671980,-1049.21,0.00013972,2]
[380950126,1755912671990,-400.0,0.00013972,2]
[380950127,1755912671999,-870.96,0.00013972,2]
[380950128,1755912672009,-400.0,0.00013972,2]
[380950129,1755912672018,-878.26,0.00013972,2]
[380950130,1755912672028,-400.0,0.00013972,2]
[380950131,1755912672038,-640.94,0.00013972,2]
[380950132,1755912672047,-1743.04,0.00013972,2]
[380950133,1755912672056,-784.45,0.00013972,2]
[380950134,1755912672067,-671.68,0.00013972,2]
[380950135,1755912672076,-400.0,0.00013972,2]
[380950136,1755912672085,-939.87,0.00013972,2]
[380950137,1755912672095,-983.76,0.00013972,2]
[380950138,1755912672104,-506.44316495,0.00013972,2]
[380950139,1755912672113,-151.0,0.00013972,2]
[380950140,1755912672123,-400.0,0.00013972,2]
[380950141,1755912672132,-538.86,0.00013972,2]
[380950142,1755912672141,-400.0,0.00013972,2]
[380950143,1755912672151,-400.0,0.00013972,2]
[380950144,1755912672161,-365.494742,0.00013972,2]
[380950145,1755912672171,-151.0,0.00013972,2]
[380950146,1755912672180,-400.0,0.00013972,2]
[380950147,1755912672190,-582.18,0.00013972,2]
[380950148,1755912672199,-400.0,0.00013972,2]
[380950149,1755912672209,-365.494742,0.00013972,2]
[380950150,1755912672218,-1021.93,0.00013972,2]
[380950151,1755912672228,-400.0,0.00013972,2]
[380950152,1755912672237,-365.494742,0.00013972,2]
[380950153,1755912672246,-437.66411213,0.00013972,2]
[380950154,1755912672256,-400.0,0.00013972,2]
[380950155,1755912672266,-839.71,0.00013972,2]
[380950156,1755912672275,-365.494742,0.00013972,2]
[380950157,1755912672284,-400.0,0.00013972,2]
[380950158,1755912672294,-706.05,0.00013972,2]
[380950159,1755912672303,-527.2,0.00013972,2]
[380950160,1755912672313,-400.0,0.00013972,2]
[380950161,1755912672322,-1278.62,0.00013972,2]
[380950162,1755912672332,-890.17,0.00013972,2]
[380950164,1755912672341,-161.044393,0.00013972,2]
[380950165,1755912672351,-151.0,0.00013972,2]
[380950166,1755912672363,-151.0,0.00013972,2]
[380950167,1755912672372,-634.12,0.00013972,2]
[380950168,1755912672382,-649.66,0.00013972,2]
[380950169,1755912672392,-161.044393,0.00013972,2]
[380950170,1755912672403,-400.0,0.00013972,2]
[380950171,1755912672414,-400.0,0.00013972,2]
[380950172,1755912672424,-1099.97,0.00013972,2]
[380950173,1755912672434,-754.33,0.00013972,2]
[380950174,1755912672444,-726.51,0.00013972,2]
[380950175,1755912672455,-161.044393,0.00013972,2]
[380950176,1755912672464,-985.25,0.00013972,2]
[380950177,1755912672474,-784.4,0.00013972,2]
[380950178,1755912672483,-161.044393,0.00013972,2]
[380950179,1755912672493,-971.12,0.00013972,2]
[380950180,1755912672503,-151.0,0.00013972,2]
[380950181,1755912672512,-691.37,0.00013972,2]
[380950182,1755912672522,-1154.79,0.00013972,2]
[380950183,1755912672531,-1203.18,0.00013972,2]
[380950184,1755912672540,-400.0,0.00013972,2]
[380950185,1755912672550,-1157.08,0.00013972,2]
[380950186,1755912672559,-400.0,0.00013972,2]
[380950187,1755912672568,-535.95,0.00013972,2]
[380950188,1755912672577,-331.807127,0.00013972,2]
[380950189,1755912672587,-151.0,0.00013972,2]
[380950190,1755912672596,-888.95,0.00013972,2]
[380950191,1755912672606,-331.807127,0.00013972,2]
[380950192,1755912672615,-151.0,0.00013972,2]
[380950193,1755912672625,-656.19,0.00013972,2]
[380950194,1755912672634,-400.0,0.00013972,2]
[380950195,1755912672644,-807.2,0.00013972,2]
[380950196,1755912672654,-331.807127,0.00013972,2]
[380950197,1755912672663,-400.0,0.00013972,2]
[380950198,1755912672673,-151.0,0.00013972,2]
[380950199,1755912672683,-1439.09,0.00013972,2]
[380950200,1755912672693,-890.52,0.00013972,2]
[380950201,1755912672702,-151.0,0.00013972,2]
[380950202,1755912672712,-331.807127,0.00013972,2]
[380950203,1755912672725,-659.77,0.00013972,2]
[380950204,1755912672734,-400.0,0.00013972,2]
[380950205,1755912672744,-583.57,0.00013972,2]
[380950206,1755912672753,-151.0,0.00013972,2]
[380950207,1755912672763,-151.0,0.00013972,2]
[380950208,1755912672772,-731.16,0.00013972,2]
[380950209,1755912672782,-635.62,0.00013972,2]
[380950210,1755912672793,-400.0,0.00013972,2]
[380950211,1755912672802,-400.0,0.00013972,2]
[380950212,1755912672812,-151.0,0.00013972,2]
[380950213,1755912672821,-400.0,0.00013972,2]
[380950214,1755912672830,-986.02,0.00013972,2]
[380950215,1755912672840,-963.55,0.00013972,2]
[380950216,1755912672849,-400.0,0.00013972,2]
[380950217,1755912672858,-766.72,0.00013972,2]
[380950218,1755912672867,-967.68,0.00013972,2]
[380950219,1755912672876,-855.77,0.00013972,2]
[380950220,1755912672885,-400.0,0.00013972,2]
[380950221,1755912672896,-482.07,0.00013972,2]
[380950222,1755912672913,-735.365588,0.00013972,2]
[380950223,1755912672927,-400.0,0.00013972,2]
[380950224,1755912672941,-400.0,0.00013972,2]
[380950225,1755912672956,-400.0,0.00013972,2]
[380950226,1755912672971,-400.0,0.00013972,2]
[380950227,1755912672986,-859.0,0.00013972,2]
[380950228,1755912672998,-735.365588,0.00013972,2]
[380950229,1755912673013,-466.03,0.00013972,2]
[380950230,1755912673027,-151.0,0.00013972,2]
[380950231,1755912673042,-828.37,0.00013972,2]
[380950232,1755912673058,-507.72,0.00013972,2]
[380950233,1755912673073,-506.23,0.00013972,2]
[380950234,1755912673088,-735.365588,0.00013972,2]
[380950235,1755912673102,-1494.7,0.00013972,2]
[380950236,1755912673118,-519.36871427,0.00013972,2]
[380950237,1755912673133,-735.365588,0.00013972,2]
[380950238,1755912673147,-777.58,0.00013972,2]
[380950239,1755912673163,-400.0,0.00013972,2]
[380950240,1755912673177,-400.0,0.00013972,2]
[380950241,1755912673191,-400.0,0.00013972,2]
[380950242,1755912673202,-400.0,0.00013972,2]
[380950243,1755912673216,-781.12,0.00013972,2]
[380950244,1755912673232,-585.32,0.00013972,2]
[380950245,1755912673244,-479.67,0.00013972,2]
[380950246,1755912673255,-937.77,0.00013972,2]
[380950247,1755912673271,-755.98,0.00013972,2]
[380950248,1755912673286,-400.0,0.00013972,2]
[380950249,1755912673298,-400.0,0.00013972,2]
[380950250,1755912673309,-1039.23,0.00013972,2]
[380950251,1755912673323,-941.46,0.00013972,2]
[380950252,1755912673336,-650.0,0.00013972,2]
[380950253,1755912673348,-498.14,0.00013972,2]
[380950254,1755912673363,-400.0,0.00013972,2]
[380950255,1755912673378,-400.0,0.00013972,2]
[380950256,1755912673391,-979.86,0.00013972,2]
[380950257,1755912673404,-958.27,0.00013972,2]
[380950258,1755912673417,-792.76,0.00013972,2]
[380950259,1755912673430,-545.13,0.00013972,2]
[380950260,1755912673443,-873.74,0.00013972,2]
[380950261,1755912673456,-400.0,0.00013972,2]
[380950262,1755912673468,-903.77,0.00013972,2]
[380950263,1755912673480,-254.93170743,0.00013972,2]
[380950264,1755912673492,-400.0,0.00013972,2]
[380950265,1755912673505,-400.0,0.00013972,2]
[380950266,1755912673517,-505.4,0.00013972,2]